bitfinex/quotes_SOLUSD_20260308
["timestamp","ask_amount","ask_price","bid_price","bid_amount"]
[1772970333374,0.49023952,82.825,82.774,0.47337324]
[1772970333575,0.49023952,82.825,82.775,0.47337324]
[1772970334489,0.49023952,82.836,82.775,0.47337324]
[1772970334685,0.49023952,82.835,82.775,0.47337324]
[1772970336295,0.49023952,82.833,82.778,0.47337324]
[1772970336482,0.49023952,82.833,82.781,0.47337324]
[1772970338880,0.49023952,82.833,82.784,0.47337324]
[1772970339106,30.17516578,82.85,82.784,0.47337324]
[1772970339281,0.49023952,82.85,82.789,0.47337324]
[1772970340089,0.49023952,82.85,82.793,0.47337324]
[1772970340594,0.49023952,82.85,82.795,0.47337324]
[1772970340890,0.49023952,82.85,82.798,0.47337324]
[1772970341085,0.49023952,82.85,82.802,0.47337324]
[1772970341292,0.49023952,82.85,82.803,0.47337324]
[1772970341479,0.49023952,82.85,82.805,0.47337324]
[1772970341795,0.49023952,82.859,82.805,0.47337324]
[1772970342392,0.49023952,82.858,82.805,0.47337324]
[1772970342573,0.49023952,82.858,82.809,0.47337324]
[1772970342985,0.49023952,82.858,82.812,0.47337324]
[1772970343181,0.49023952,82.858,82.814,0.47337324]
[1772970343569,0.49023952,82.858,82.816,0.47337324]
[1772970343981,0.49023952,82.856,82.818,0.47337324]
[1772970344376,0.49023952,82.856,82.819,0.47337324]
[1772970345196,0.49023952,82.856,82.821,0.47337324]
[1772970346697,12.06927765,82.855,82.821,0.47337324]
[1772970346892,0.49023952,82.854,82.821,0.47337324]
[1772970348393,0.49023952,82.854,82.823,0.47337324]
[1772970349574,0.49023952,82.852,82.823,0.47337324]
[1772970350494,0.49023952,82.852,82.824,12.07379503]
[1772970350683,0.49023952,82.852,82.825,0.47337324]
[1772970352187,0.49023952,82.871,82.826,0.47337324]
[1772970352791,0.49023952,82.87,82.829,0.47337324]
[1772970354190,0.49023952,82.87,82.827,12.07335772]
[1772970354800,7.83074658,82.887,82.819,12.07452396]
[1772970354801,0.49023952,82.868,82.819,12.07452396]
[1772970355303,0.49023952,82.867,82.818,5.67166323]
[1772970356294,0.49023952,82.867,82.82,0.47337324]
[1772970356891,0.49023952,82.865,82.822,0.47337324]
[1772970360201,0.49023952,82.863,82.824,0.47337324]
[1772970363220,0.49509617,82.861,82.826,0.48105847]
[1772970364920,0.49509617,82.861,82.825,42.25777241]
[1772970365315,12.06854936,82.86,82.825,30.18412315]
[1772970365618,0.49007317,82.859,82.825,30.66895146]
[1772970365919,0.49007317,82.859,82.826,0.48482831]
[1772970366504,0.49007317,82.857,82.827,12.55818603]
[1772970366708,0.49007317,82.857,82.827,0.48482831]
[1772970367019,0.49007317,82.857,82.827,12.55818603]
[1772970367220,0.49007317,82.857,82.818,5.67166323]
[1772970368018,0.49007317,82.857,82.819,12.55935227]
[1772970368604,102.58514565,82.858,82.819,12.07452396]
[1772970368605,0.49007317,82.855,82.819,12.07452396]
[1772970370217,0.49007317,82.853,82.819,12.07452396]
[1772970370621,0.49007317,82.853,82.818,5.67166323]
[1772970372527,0.49007317,82.851,82.818,5.67166323]
[1772970374217,0.49007317,82.85,82.798,12.07748627]
[1772970374418,0.49007317,82.85,82.787,0.48482831]
[1772970374624,0.28432314,82.851,82.787,0.48482831]
[1772970374625,0.49007317,82.847,82.788,0.48482831]
[1772970377128,0.28432314,82.848,82.79,0.48482831]
[1772970377129,0.49007317,82.844,82.79,0.48482831]
[1772970381134,0.49007317,82.841,82.792,0.48482831]
[1772970383411,0.49007317,82.839,82.789,30.19724842]
[1772970383635,0.49007317,82.838,82.782,12.07992075]
[1772970383826,0.49007317,82.838,82.782,42.27972263]
[1772970384165,0.49007317,82.838,82.783,0.48482831]
[1772970385737,60.3507586,82.849,82.782,42.27972263]
[1772970385738,0.49007317,82.836,82.785,0.48482831]
[1772970387841,0.49007317,82.834,82.787,0.48482831]
[1772970390336,0.49007317,82.832,82.789,0.48482831]
[1772970394348,0.47184248,82.83,82.791,0.45300216]
[1772970398440,0.47184248,82.828,82.793,0.45300216]
[1772970398655,0.47184248,82.828,82.792,12.07846168]
[1772970398831,0.47184248,82.828,82.783,0.45300216]
[1772970399332,0.47184248,82.827,82.781,5.14164057]
[1772970399539,0.47184248,82.824,82.768,0.45300216]
[1772970399742,0.47184248,82.824,82.749,0.45300216]
[1772970400049,0.47184248,82.824,82.751,0.45300216]
[1772970400544,0.47184248,82.819,82.753,0.45300216]
[1772970400729,0.47184248,82.818,82.753,0.45300216]
[1772970403246,0.47184248,82.813,82.755,0.45300216]
[1772970403448,0.47184248,82.812,82.755,0.45300216]
[1772970405339,0.47184248,82.809,82.757,0.45300216]
[1772970407553,0.47184248,82.807,82.759,0.45300216]
[1772970411242,0.47184248,82.805,82.761,0.45300216]
[1772970413856,74.65153965,82.828,82.751,35.2214904]
[1772970413857,0.47184248,82.802,82.752,0.45300216]
[1772970415748,0.47184248,82.799,82.752,0.45300216]
[1772970415942,0.47184248,82.799,82.754,0.45300216]
[1772970417957,0.28432314,82.8,82.756,0.45300216]
[1772970417958,0.47184248,82.797,82.756,0.45300216]
[1772970420260,0.47184248,82.795,82.758,0.45300216]
[1772970420951,12.07787815,82.796,82.758,0.45300216]
[1772970421353,0.47184248,82.795,82.758,0.45300216]
[1772970422557,0.49608441,82.8,82.76,0.47549454]
[1772970423962,0.47468215,82.815,82.76,0.47549454]
[1772970425462,0.47468215,82.813,82.762,0.49356097]
[1772970429267,42.26338541,82.814,82.765,0.49356097]
[1772970429268,12.55022675,82.812,82.765,0.49356097]
[1772970429767,0.47468215,82.811,82.765,0.49356097]
[1772970430070,12.07583625,82.81,82.768,0.49356097]
[1772970431349,0.47468215,82.81,82.77,0.49356097]
[1772970432464,0.47468215,82.815,82.77,0.49356097]
[1772970432668,0.47468215,82.83,82.77,0.49356097]
[1772970433558,0.47468215,82.828,82.773,0.49356097]
[1772970434153,12.07306619,82.829,82.773,0.49356097]
[1772970435570,0.47468215,82.833,82.773,0.49356097]
[1772970436768,12.07262893,82.832,82.774,102.68925024]
[1772970436954,0.47468215,82.831,82.779,0.49356097]
[1772970437162,0.47468215,82.839,82.779,0.49356097]
[1772970439670,0.47468215,82.837,82.783,3.69383402]
[1772970439972,0.47468215,82.837,82.785,0.49356097]
[1772970441971,0.47468215,82.843,82.786,42.27767979]
[1772970442173,0.47468215,82.843,82.788,0.49356097]
[1772970443169,0.47468215,82.841,82.79,0.49356097]
[1772970444480,0.47468215,82.844,82.793,0.49356097]
[1772970444681,0.47468215,82.85,82.793,0.49356097]
[1772970447383,0.47468215,82.848,82.796,0.49356097]
[1772970449369,0.47468215,82.846,82.799,0.49356097]
[1772970451486,0.47468215,82.844,82.8,12.07729468]
[1772970452588,0.47468215,82.844,82.8,12.57085565]
[1772970452990,0.47468215,82.844,82.801,0.48195913]
[1772970453689,0.49378917,82.842,82.803,0.48195913]
[1772970454878,0.49378917,82.842,82.802,12.07700297]
[1772970455478,0.49378917,82.84,82.802,12.07700297]
[1772970455679,0.49378917,82.84,82.803,0.48195913]
[1772970457699,0.28432314,82.857,82.764,12.08245196]
[1772970457700,0.49378917,82.838,82.764,12.08245196]
[1772970457989,0.49378917,82.822,82.761,0.48195913]
[1772970459978,0.49378917,82.816,82.761,0.48195913]
[1772970462481,0.49378917,82.814,82.761,0.48195913]
[1772970463094,0.49378917,82.811,82.761,0.48195913]
[1772970465298,0.49378917,82.808,82.753,0.48195913]
[1772970465882,0.49378917,82.805,82.753,0.48195913]
[1772970466795,0.49378917,82.805,82.745,5.01086593]
[1772970467199,0.49378917,82.805,82.746,0.48195913]
[1772970467884,0.49378917,82.799,82.745,5.01086593]
[1772970468992,0.49378917,82.794,82.745,5.01086593]
[1772970469192,0.49378917,82.793,82.745,5.01086593]
[1772970469391,0.49378917,82.793,82.732,0.48195913]
[1772970471187,0.63595074,82.791,82.732,0.48195913]
[1772970471388,0.49378917,82.787,82.732,0.48195913]
[1772970472806,0.49378917,82.784,82.732,0.48195913]
[1772970473015,0.49378917,82.784,82.734,0.48195913]
[1772970473188,42.27767979,82.786,82.735,0.48195913]
[1772970473809,0.49378917,82.785,82.735,0.48195913]
[1772970474910,12.07962891,82.784,82.737,0.48195913]
[1772970475111,12.57341808,82.784,82.737,0.48195913]
[1772970476307,0.49378917,82.783,82.737,0.48195913]
[1772970479315,0.49378917,82.793,82.74,0.48195913]
[1772970480620,0.49378917,82.791,82.742,0.48195913]
[1772970482711,0.48298446,82.789,82.744,0.48611535]
[1772970483119,0.48298446,82.788,82.744,0.48611535]
[1772970485616,60.38324006,82.805,82.744,0.48611535]
[1772970485617,0.46151039,82.785,82.744,0.48611535]
[1772970485816,0.46151039,82.785,82.746,0.46688166]
[1772970487417,0.46151039,82.783,82.735,12.0867831]
[1772970487799,0.46151039,82.783,82.736,0.46688166]
[1772970492412,0.46151039,82.781,82.738,0.46688166]
[1772970494725,0.46151039,82.779,82.74,0.46688166]
[1772970495504,0.46151039,82.778,82.714,0.46688166]
[1772970496813,0.28432314,82.776,82.719,0.46688166]
[1772970497127,0.46151039,82.775,82.719,0.46688166]
[1772970497831,0.46151039,82.772,82.719,0.46688166]
[1772970498121,0.46151039,82.772,82.714,0.46688166]
[1772970498541,0.46151039,82.765,82.714,0.46688166]
[1772970499033,0.28432314,82.763,82.714,0.46688166]
[1772970499321,0.46151039,82.759,82.708,0.46688166]
[1772970499504,0.46151039,82.755,82.702,0.46688166]
[1772970500526,0.46151039,82.755,82.7,0.1]
[1772970500923,0.46151039,82.755,82.702,0.46688166]
[1772970501099,12.08400802,82.754,82.704,0.46688166]
[1772970501305,0.39608441,82.752,82.704,0.46688166]
[1772970502720,0.39608441,82.749,82.7,0.1]
[1772970502927,0.39608441,82.749,82.7,0.56688166]
[1772970503107,0.39608441,82.744,82.7,0.56688166]
[1772970503302,0.39608441,82.744,82.702,0.46688166]
[1772970504007,0.39608441,82.743,82.702,0.46688166]
[1772970505219,0.39608441,82.74,82.7,0.1]
[1772970505424,0.39608441,82.74,82.7,0.56688166]
[1772970505617,0.39608441,82.74,82.7,0.1]
[1772970506719,0.39608441,82.74,82.7,0.56688166]
[1772970506920,0.39608441,82.737,82.692,0.46688166]
[1772970507415,0.39608441,82.734,82.69,0.1]
[1772970507604,0.39608441,82.734,82.691,1e-08]
[1772970509317,0.39608441,82.731,82.693,0.46688166]
[1772970509510,5.24075384,82.731,82.693,0.46688166]
[1772970511528,5.24075384,82.731,82.695,0.46688166]
[1772970513640,0.47299282,82.761,82.73,0.47080167]
[1772970514937,0.47299282,82.759,82.73,0.47080167]
[1772970517039,0.47299282,82.757,82.73,0.47080167]
[1772970519837,0.47299282,82.755,82.73,0.47080167]
[1772970521942,0.47299282,82.753,82.73,0.47080167]
[1772970524031,12.08430007,82.752,82.73,0.47080167]
[1772970525546,0.47299282,82.752,82.73,0.47080167]
[1772970527346,0.47299282,82.752,82.698,12.09219086]
[1772970527538,12.0844461,82.751,82.688,12.23581482]
[1772970527738,12.0844461,82.751,82.689,0.14216157]
[1772970528751,0.47299282,82.75,82.689,0.14216157]
[1772970529342,0.47299282,82.75,82.692,0.47080167]
[1772970529857,30.20928067,82.757,82.697,0.47080167]
[1772970529858,30.68227349,82.757,82.697,0.47080167]
[1772970531244,12.080855,82.776,82.703,0.47080167]
[1772970531441,12.08141595,82.772,82.703,0.47080167]
[1772970531628,12.55355134,82.778,82.703,0.47080167]
[1772970531829,0.00042414,82.768,82.71,0.33311392]
[1772970532051,0.00042414,82.768,82.712,0.33311392]
[1772970532551,0.00042414,82.768,82.718,0.33311392]
[1772970533028,0.00042414,82.768,82.721,0.33311392]
[1772970533227,0.00042414,82.768,82.72,0.28432314]
[1772970533228,0.00042414,82.768,82.726,0.33311392]
[1772970533432,0.00042414,82.768,82.729,0.33311392]
[1772970533631,12.07573282,82.811,82.741,0.33311392]
[1772970533846,0.47299282,82.81,82.741,0.33311392]
[1772970534765,12.07573282,82.811,82.741,0.33311392]
[1772970535137,0.47299282,82.81,82.746,0.33311392]
[1772970535733,0.47299282,82.81,82.747,0.33311392]
[1772970537057,0.47299282,82.818,82.749,0.33311392]
[1772970537368,0.47299282,82.816,82.755,0.33311392]
[1772970538651,0.47299282,82.814,82.757,0.28432314]
[1772970538852,0.47299282,82.814,82.758,0.33311392]
[1772970539359,0.47299282,82.82,82.758,0.33311392]
[1772970539860,0.47299282,82.82,82.76,0.33311392]
[1772970540246,19.62879821,82.848,82.771,3.69383402]
[1772970540443,19.62879821,82.848,82.777,0.47080167]
[1772970540857,19.62879821,82.848,82.783,0.47080167]
[1772970541443,0.28432314,82.847,82.783,0.47080167]
[1772970542257,0.47299282,82.846,82.783,0.47080167]
[1772970542457,0.47299282,82.843,82.785,0.47080167]
[1772970544872,0.46180937,82.841,82.787,0.49640101]
[1772970545950,0.46180937,82.839,82.789,0.49640101]
[1772970547158,0.46180937,82.839,82.79,0.49640101]
[1772970548255,0.46180937,82.837,82.792,0.49640101]
[1772970550281,0.46180937,82.835,82.794,0.49640101]
[1772970555479,0.46180937,82.833,82.796,0.49640101]
[1772970558492,0.46180937,82.831,82.798,0.49640101]
[1772970559088,0.46180937,82.831,82.792,0.49640101]
[1772970560289,0.46180937,82.829,82.784,0.49640101]
[1772970564795,0.46180937,82.827,82.786,0.49640101]
[1772970565985,0.46180937,82.826,82.786,0.49640101]
[1772970567486,0.46180937,82.824,82.769,0.49640101]
[1772970569705,0.46180937,82.822,82.771,0.49640101]
[1772970571887,0.46180937,82.82,82.773,0.49640101]
[1772970573396,0.28432314,82.827,82.775,0.46980538]
[1772970573397,0.47861533,82.818,82.775,0.46980538]
[1772970576502,0.47861533,82.816,82.777,0.46980538]
[1772970577012,12.07481555,82.817,82.777,0.46980538]
[1772970577206,30.18320539,82.828,82.777,0.46980538]
[1772970577207,0.47861533,82.826,82.777,0.46980538]
[1772970578897,0.47861533,82.824,82.779,0.46980538]
[1772970585305,0.47861533,82.822,82.781,0.46980538]
[1772970590417,0.47861533,82.82,82.783,0.46980538]
[1772970590800,0.47861533,82.82,82.782,12.07992075]
[1772970591223,0.47861533,82.82,82.783,0.46980538]
[1772970592497,0.47861533,82.818,82.783,0.46980538]
[1772970592796,0.47861533,82.818,82.784,12.07962891]
[1772970592996,0.47861533,82.818,82.785,0.46980538]
[1772970594625,0.47861533,82.816,82.787,0.46980538]
[1772970597522,0.47861533,82.814,82.789,0.46980538]
[1772970598904,0.47861533,82.814,82.769,0.46980538]
[1772970599521,0.47861533,82.812,82.771,0.46980538]
[1772970601323,0.47861533,82.825,82.774,0.28432314]
[1772970601519,0.47861533,82.823,82.775,0.46980538]
[1772970607037,0.45178012,82.821,82.777,0.49354873]
[1772970612639,0.45178012,82.819,82.779,0.49354873]
[1772970612823,0.45178012,82.819,82.773,0.49354873]
[1772970613027,0.45178012,82.818,82.773,0.49354873]
[1772970613431,0.45178012,82.815,82.762,0.49354873]
[1772970613627,0.45178012,82.815,82.756,0.49354873]
[1772970614836,0.45178012,82.813,82.758,0.49354873]
[1772970617336,0.45178012,82.81,82.76,0.49354873]
[1772970618539,0.45178012,82.81,82.755,12.57741073]
[1772970619235,102.64584765,82.809,82.755,12.57741073]
[1772970619442,0.45178012,82.807,82.755,12.57741073]
[1772970619930,0.45178012,82.807,82.756,0.49354873]
[1772970620551,0.45178012,82.804,82.751,0.49354873]
[1772970625252,0.45178012,82.801,82.753,0.49354873]
[1772970629459,0.45178012,82.798,82.755,0.49354873]
[1772970635266,0.47267128,82.795,82.757,0.49194472]
[1772970642977,0.47267128,82.793,82.757,0.49194472]
[1772970643478,0.14216157,82.793,82.67,7.82783877]
[1772970643647,0.14216157,82.793,82.609,60.49941893]
[1772970643648,0.47267128,82.789,82.694,0.49194472]
[1772970643843,0.14216157,82.79,82.661,8.46330172]
[1772970643844,8.66077128,82.784,82.673,6.31099528]
[1772970644046,8.66077128,82.776,82.68,12.19473436]
[1772970644267,5.29744697,82.755,82.68,0.1]
[1772970644468,4.82477569,82.733,82.68,0.1]
[1772970644670,0.47267128,82.731,82.68,0.1]
[1772970644972,0.47267128,82.72,82.645,12.09994555]
[1772970645148,0.47267128,82.72,82.645,42.34980942]
[1772970645350,0.47267128,82.72,82.646,0.28432314]
[1772970645648,0.47267128,82.72,82.645,42.34980942]
[1772970645848,0.47267128,82.72,82.661,0.31416202]
[1772970646890,0.47267128,82.718,82.661,0.31416202]
[1772970647069,0.47267128,82.715,82.661,0.31416202]
[1772970647272,0.47267128,82.713,82.661,0.31416202]
[1772970647568,0.47267128,82.711,82.661,0.31416202]
[1772970647763,0.47267128,82.709,82.663,0.31416202]
[1772970648174,0.47267128,82.707,82.663,0.31416202]
[1772970648672,0.47267128,82.705,82.65,0.41416202]
[1772970648854,0.47267128,82.703,82.65,0.1]
[1772970649051,0.47267128,82.68,82.599,0.49194472]
[1772970649448,0.47267128,82.68,82.6,0.49194472]
[1772970649781,0.47267128,82.68,82.6,61.02446111]
[1772970650066,0.47267128,82.675,82.605,0.49194472]
[1772970650256,0.47267128,82.673,82.605,0.49194472]
[1772970650577,0.47267128,82.671,82.605,0.49194472]
[1772970650875,0.47267128,82.669,82.608,0.49194472]
[1772970651253,0.47267128,82.668,82.608,0.49194472]
[1772970651467,0.47267128,82.667,82.608,0.49194472]
[1772970652054,0.47267128,82.665,82.611,0.49194472]
[1772970653778,0.47267128,82.665,82.61,0.14216157]
[1772970653779,25.24220345,82.665,82.614,0.49194472]
[1772970654357,25.24220345,82.665,82.616,0.49194472]
[1772970655156,25.24220345,82.665,82.617,0.49194472]
[1772970655350,25.24220345,82.665,82.616,0.14216157]
[1772970657257,25.24220345,82.665,82.619,0.77626786]
[1772970657462,25.24220345,82.665,82.62,0.49194472]
[1772970657668,0.47267128,82.664,82.62,0.49194472]
[1772970659981,0.47267128,82.664,82.623,0.49194472]
[1772970660474,0.47267128,82.664,82.621,42.36211131]
[1772970660475,0.47267128,82.718,82.626,0.49194472]
[1772970660682,0.47267128,82.717,82.626,0.49194472]
[1772970661077,0.47267128,82.715,82.626,0.49194472]
[1772970661285,0.47267128,82.714,82.626,0.49194472]
[1772970663280,0.49581468,82.711,82.631,0.47265886]
[1772970663465,0.49581468,82.711,82.632,0.47265886]
[1772970665459,0.47686028,82.708,82.637,0.47682545]
[1772970665664,0.47686028,82.708,82.638,0.47682545]
[1772970669471,0.47686028,82.705,82.641,0.47682545]
[1772970669667,0.47686028,82.713,82.644,0.47682545]
[1772970669977,12.56568899,82.721,82.648,0.47682545]
[1772970670186,0.47686028,82.727,82.654,0.47682545]
[1772970671570,0.47686028,82.727,82.66,0.47682545]
[1772970672393,0.47686028,82.725,82.66,0.47682545]
[1772970673581,0.47686028,82.725,82.665,0.47682545]
[1772970673789,0.47686028,82.725,82.668,0.47682545]
[1772970674397,0.47686028,82.723,82.668,0.47682545]
[1772970675688,0.47686028,82.721,82.671,0.47682545]
[1772970677998,0.47686028,82.719,82.673,0.47682545]
[1772970679491,0.47686028,82.718,82.672,12.0959938]
[1772970680004,0.47686028,82.715,82.669,0.47682545]
[1772970681886,0.28432314,82.732,82.655,0.28432314]
[1772970681887,0.47686028,82.713,82.671,0.47682545]
[1772970682803,0.47686028,82.719,82.672,0.47682545]
[1772970685010,0.47686028,82.717,82.674,0.47682545]
[1772970687605,0.47686028,82.717,82.676,0.47682545]
[1772970688511,0.47686028,82.716,82.676,0.47682545]
[1772970690210,0.47686028,82.714,82.677,12.09526228]
[1772970690396,0.47686028,82.713,82.662,0.47682545]
[1772970692191,0.47686028,82.711,82.664,0.47682545]
[1772970696518,0.49236736,82.709,82.666,0.4965867]
[1772970699705,0.49236736,82.707,82.668,0.4965867]
[1772970702617,12.09007308,82.713,82.67,0.4965867]
[1772970702820,0.49236736,82.717,82.671,0.4965867]
[1772970705099,0.49236736,82.715,82.674,0.4965867]
[1772970707017,0.49236736,82.713,82.676,0.4965867]
[1772970709827,0.49236736,82.713,82.678,0.4965867]
[1772970710523,0.49236736,82.711,82.678,0.4965867]
[1772970711931,0.49236736,82.711,82.68,0.4965867]
[1772970712321,0.49236736,82.709,82.68,0.4965867]
[1772970714511,0.49236736,82.709,82.682,0.4965867]
[1772970716029,0.49236736,82.73,82.682,0.4965867]
[1772970716533,0.49236736,82.73,82.683,0.4965867]
[1772970716830,0.49236736,82.728,82.685,0.4965867]
[1772970720530,0.49236736,82.726,82.687,0.4965867]
[1772970721534,0.49236736,82.737,82.688,0.4965867]
[1772970722239,0.49236736,82.75,82.691,0.4965867]
[1772970722529,0.49236736,82.748,82.696,0.45497418]
[1772970722730,0.49236736,82.748,82.697,0.45497418]
[1772970724636,0.45340412,82.746,82.699,0.49683675]
[1772970726536,0.45340412,82.744,82.7,12.09189842]
[1772970726854,0.45340412,82.743,82.7,12.09189842]
[1772970727848,0.45340412,82.743,82.701,0.49683675]
[1772970730444,0.45340412,82.741,82.703,0.49683675]
[1772970732639,0.45340412,82.739,82.704,12.0913136]
[1772970733727,0.45340412,82.739,82.704,12.58815035]
[1772970734950,0.45340412,82.737,82.705,0.49683675]
[1772970735527,0.45340412,82.737,82.688,0.49683675]
[1772970735843,0.45340412,82.736,82.688,0.49683675]
[1772970736738,0.28432314,82.734,82.689,12.09350699]
[1772970737045,0.45340412,82.733,82.689,12.09350699]
[1772970738325,0.45340412,82.733,82.689,12.59034374]
[1772970738521,0.45340412,82.733,82.69,0.49683675]
[1772970738722,0.45340412,82.733,82.691,12.09321449]
[1772970738942,0.45340412,82.733,82.693,0.49683675]
[1772970739836,0.45340412,82.733,82.695,0.49683675]
[1772970740842,0.45340412,82.733,82.694,42.3247152]
[1772970740843,0.45340412,82.76,82.699,0.49683675]
[1772970741146,0.45340412,82.76,82.7,0.49683675]
[1772970742231,0.45340412,82.758,82.705,0.49683675]
[1772970743530,12.08245357,82.765,82.705,0.14216157]
[1772970743730,0.45340412,82.764,82.706,0.49683675]
[1772970744430,0.45340412,82.762,82.709,0.49683675]
[1772970747154,0.45340412,82.76,82.712,0.49683675]
[1772970749559,0.45340412,82.76,82.714,0.49683675]
[1772970752043,0.45340412,82.758,82.716,0.49683675]
[1772970755041,12.08327795,82.759,82.718,0.49946872]
[1772970755042,0.47366742,82.756,82.718,0.49946872]
[1772970758177,0.47366742,82.754,82.719,12.58858972]
[1772970758348,0.47366742,82.754,82.719,12.089121]
[1772970759046,0.47366742,82.754,82.72,0.49946872]
[1772970760469,0.47366742,82.752,82.72,0.49946872]
[1772970760776,0.47366742,82.752,82.721,12.08882871]
[1772970762064,0.47366742,82.752,82.722,0.49946872]
[1772970762654,12.08415404,82.753,82.722,0.49946872]
[1772970762655,0.47366742,82.75,82.723,12.08853644]
[1772970764066,60.4059821,82.774,82.724,0.49946872]
[1772970764067,0.47366742,82.774,82.724,0.49946872]
[1772970765064,0.47366742,82.773,82.726,0.49946872]
[1772970765957,12.08108826,82.774,82.726,0.49946872]
[1772970766157,12.07889937,82.789,82.727,0.49946872]
[1772970766362,0.47366742,82.788,82.73,0.49946872]
[1772970767000,0.47366742,82.788,82.733,0.49946872]
[1772970767177,0.47366742,82.788,82.735,0.49946872]
[1772970767479,0.47366742,82.788,82.737,0.49946872]
[1772970767860,0.47366742,82.787,82.737,0.49946872]
[1772970768958,12.07919117,82.787,82.737,0.49946872]
[1772970769164,0.47366742,82.786,82.737,0.49946872]
[1772970769572,0.47366742,82.786,82.74,0.49946872]
[1772970770252,12.07834905,82.793,82.74,0.49946872]
[1772970770473,0.47366742,82.794,82.743,0.49946872]
[1772970771158,0.47366742,82.803,82.743,0.49946872]
[1772970771769,0.47366742,82.803,82.745,0.49946872]
[1772970771977,0.47366742,82.803,82.747,0.49946872]
[1772970772762,0.67366742,82.8,82.753,0.49946872]
[1772970773078,0.47366742,82.799,82.753,0.49946872]
[1772970775277,0.47366742,82.799,82.755,0.49946872]
[1772970776266,0.47366742,82.797,82.755,0.49946872]
[1772970777684,0.47366742,82.795,82.757,0.49946872]
[1772970779182,0.47366742,82.795,82.756,42.79247466]
[1772970779389,0.47366742,82.795,82.757,0.49946872]
[1772970780075,0.47366742,82.793,82.759,0.49946872]
[1772970780685,0.47366742,82.793,82.758,12.08342395]
[1772970782184,30.19442178,82.797,82.757,0.49946872]
[1772970782185,0.47366742,82.791,82.757,0.49946872]
[1772970783593,0.47703307,82.789,82.759,0.48307963]
[1772970784273,0.47703307,82.789,82.758,12.08342395]
[1772970784788,0.47703307,82.789,82.758,12.56650358]
[1772970785492,0.47703307,82.789,82.759,0.48307963]
[1772970786674,0.47703307,82.787,82.76,12.08313194]
[1772970787997,0.47703307,82.785,82.76,12.08313194]
[1772970789696,0.47703307,82.783,82.76,12.08313194]
[1772970792793,12.55600553,82.789,82.761,0.48307963]
[1772970792999,0.47703307,82.789,82.761,0.48307963]
[1772970793389,0.47703307,82.799,82.761,0.48307963]
[1772970795183,0.47703307,82.799,82.76,42.2909618]
[1772970795184,0.47703307,82.799,82.763,0.48307963]
[1772970795602,0.2,82.8,82.764,0.48307963]
[1772970796406,1e-08,82.8,82.768,0.48307963]
[1772970797605,1e-08,82.8,82.771,0.48307963]
[1772970797988,0.47703307,82.822,82.774,0.48307963]
[1772970799216,0.47703307,82.829,82.775,1.49241737]
[1772970799392,0.47703307,82.829,82.777,0.48307963]
[1772970799696,0.47703307,82.828,82.782,0.48307963]
[1772970799887,0.47703307,82.828,82.783,0.48307963]
[1772970801305,0.47703307,82.826,82.784,12.07962891]
[1772970802613,0.47703307,82.824,82.784,12.07962891]
[1772970803607,0.47703307,82.823,82.784,12.07962891]
[1772970804000,0.47703307,82.823,82.778,12.08037635]
[1772970804515,0.47703307,82.821,82.777,0.48307963]
[1772970805093,0.47703307,82.821,82.766,0.48307963]
[1772970807313,0.47703307,82.819,82.768,0.48307963]
[1772970809710,0.47703307,82.816,82.77,0.48307963]
[1772970811499,0.76135621,82.814,82.771,12.08152613]
[1772970811695,0.47703307,82.813,82.771,12.56460576]
[1772970811900,0.47703307,82.813,82.772,0.48307963]
[1772970813428,0.45126314,82.811,82.773,12.08123421]
[1772970814501,0.45126314,82.811,82.773,12.57468215]
[1772970814705,0.45126314,82.811,82.774,0.49344794]
[1772970816731,0.45126314,82.821,82.776,0.49344794]
[1772970816925,0.45126314,82.82,82.776,0.49344794]
[1772970817834,0.45126314,82.818,82.778,0.49344794]
[1772970819032,12.0739777,82.823,82.778,0.49344794]
[1772970819208,0.45126314,82.822,82.778,0.49344794]
[1772970820628,0.45126314,82.822,82.78,0.49344794]
[1772970821633,0.45126314,82.822,82.781,0.49344794]
[1772970823608,0.45126314,82.822,82.784,0.49344794]
[1772970823809,0.45126314,82.821,82.784,0.49344794]
[1772970825627,0.45126314,82.821,82.786,0.49344794]
[1772970826128,0.45126314,82.82,82.786,0.49344794]
[1772970828426,0.45126314,82.82,82.787,42.27716911]
[1772970828623,0.45126314,82.82,82.788,0.49344794]
[1772970830924,0.45126314,82.82,82.79,0.49344794]
[1772970833742,0.45126314,82.819,82.792,0.49344794]
[1772970835740,0.45126314,82.819,82.794,0.49344794]
[1772970838948,0.45126314,82.817,82.795,12.07802403]
[1772970839137,0.45126314,82.817,82.796,0.49344794]
[1772970841631,0.45126314,82.817,82.798,0.49344794]
[1772970844050,0.45126314,82.817,82.799,12.07744054]
[1772970845447,0.45126314,82.817,82.799,0.46247355]
[1772970847561,0.48743963,82.829,82.801,0.46247355]
[1772970849658,0.2,82.83,82.803,0.46247355]
[1772970850034,0.48743963,82.844,82.804,0.46247355]
[1772970851954,0.48743963,82.844,82.803,0.28432314]
[1772970851955,0.48743963,82.844,82.806,0.46247355]
[1772970855660,0.48743963,82.844,82.808,0.46247355]
[1772970858759,0.48743963,82.844,82.81,0.46247355]
[1772970860864,0.48743963,82.844,82.812,0.46247355]
[1772970863364,0.48743963,82.844,82.814,0.46247355]